fUST/lending_fUST_20250528
["ID","MTS","AMOUNT","RATE_DAILY","PERIOD"]
[362646342,1748385043623,-430.0,0.00021095,2]
[362646345,1748385043637,-430.0,0.00021095,2]
[362646347,1748385043647,-430.0,0.00021095,2]
[362646349,1748385043656,-430.0,0.00021095,2]
[362646351,1748385043666,-430.0,0.00021095,2]
[362646353,1748385043677,-430.0,0.00021095,2]
[362646355,1748385043686,-430.0,0.00021095,2]
[362646357,1748385043696,-430.0,0.00021095,2]
[362646358,1748385043705,-430.0,0.00021095,2]
[362646360,1748385043716,-568.86,0.00021095,2]
[362646362,1748385043729,-1108.25,0.00021095,2]
[362646365,1748385043740,-430.0,0.00021095,2]
[362646366,1748385043750,-558.61,0.00021095,2]
[362646368,1748385043760,-430.0,0.00021095,2]
[362646371,1748385043771,-363.21914695,0.00021095,2]
[362646372,1748385043781,-1282.69,0.00021095,2]
[362646374,1748385043791,-2428.74,0.00021095,2]
[362646376,1748385043801,-263.24940544,0.00021095,2]
[362646378,1748385043810,-1925.32,0.00021095,2]
[362646380,1748385043820,-1372.47,0.00021095,2]
[362646382,1748385043830,-430.0,0.00021095,2]
[362646384,1748385043839,-430.0,0.00021095,2]
[362646386,1748385043851,-570.45,0.00021095,2]
[362646388,1748385043860,-430.0,0.00021095,2]
[362646390,1748385043870,-430.0,0.00021095,2]
[362646392,1748385043879,-430.0,0.00021095,2]
[362646394,1748385043889,-989.22,0.00021095,2]
[362646396,1748385043900,-430.0,0.00021095,2]
[362646398,1748385043910,-1091.86,0.00021095,2]
[362646400,1748385043920,-430.0,0.00021095,2]
[362646402,1748385043932,-644.91,0.00021095,2]
[362646404,1748385043941,-430.0,0.00021095,2]
[362646406,1748385043953,-430.0,0.00021095,2]
[362646408,1748385043963,-161.35,0.00021095,2]
[362646410,1748385043975,-430.0,0.00021095,2]
[362646412,1748385043984,-430.0,0.00021095,2]
[362646414,1748385043993,-430.0,0.00021095,2]
[362646415,1748385044003,-761.15,0.00021095,2]
[362646417,1748385044012,-430.0,0.00021095,2]
[362646419,1748385044021,-717.31,0.00021095,2]
[362646421,1748385044031,-430.0,0.00021095,2]
[362646423,1748385044040,-857.73,0.00021095,2]
[362646425,1748385044050,-583.78,0.00021095,2]
[362646427,1748385044059,-430.0,0.00021095,2]
[362646429,1748385044069,-430.0,0.00021095,2]
[362646440,1748385044170,-155.0,0.00021096,2]
[362646442,1748385044180,-700.0,0.00021164,2]
[362646444,1748385044189,-1937.22846601,0.00021176,4]
[362646446,1748385044198,-500.0,0.00021267,2]
[362646447,1748385044208,-500.0,0.00021312,2]
[362646448,1748385044218,-500.0,0.00021312,2]
[362646449,1748385044229,-500.0,0.00021312,2]
[362646450,1748385044238,-500.4188959,0.00021312,2]
[362646451,1748385044248,-211.38915371,0.00021312,2]
[362646452,1748385044258,-556.50572852,0.00021312,2]
[362646453,1748385044268,-500.0,0.00021312,2]
[362646454,1748385044277,-501.82350413,0.00021312,2]
[362646455,1748385044287,-500.0,0.00021312,2]
[362646456,1748385044296,-1041.858631,0.00021335,2]
[362646457,1748385044305,-500.0,0.00021344,2]
[362646458,1748385044315,-430.0,0.00021369,2]
[362646459,1748385044324,-430.0,0.00021369,2]
[362646460,1748385044334,-430.0,0.00021369,2]
[362646461,1748385044343,-430.0,0.00021369,2]
[362646462,1748385044353,-430.0,0.00021369,2]
[362646463,1748385044363,-430.0,0.00021369,2]
[362646464,1748385044372,-579.08,0.00021369,2]
[362646465,1748385044382,-430.0,0.00021369,2]
[362646466,1748385044392,-430.0,0.00021369,2]
[362646467,1748385044401,-430.0,0.00021369,2]
[362646468,1748385044410,-430.0,0.00021369,2]
[362646469,1748385044419,-430.0,0.00021369,2]
[362646471,1748385044429,-568.86,0.00021369,2]
[362646472,1748385044439,-1108.25,0.00021369,2]
[362646474,1748385044448,-430.0,0.00021369,2]
[362646476,1748385044459,-558.61,0.00021369,2]
[362646478,1748385044468,-246.50741763,0.00021369,2]
[362646480,1748385044478,-1282.69,0.00021369,2]
[362646482,1748385044487,-2428.74,0.00021369,2]
[362646484,1748385044497,-1925.32,0.00021369,2]
[362646486,1748385044506,-1372.47,0.00021369,2]
[362646488,1748385044515,-430.0,0.00021369,2]
[362646490,1748385044524,-430.0,0.00021369,2]
[362646492,1748385044534,-570.45,0.00021369,2]
[362646494,1748385044543,-430.0,0.00021369,2]
[362646496,1748385044553,-430.0,0.00021369,2]
[362646498,1748385044563,-430.0,0.00021369,2]
[362646500,1748385044572,-989.22,0.00021369,2]
[362646502,1748385044581,-430.0,0.00021369,2]
[362646504,1748385044591,-1091.86,0.00021369,2]
[362646506,1748385044601,-430.0,0.00021369,2]
[362646508,1748385044611,-644.91,0.00021369,2]
[362646510,1748385044622,-430.0,0.00021369,2]
[362646512,1748385044631,-430.0,0.00021369,2]
[362646514,1748385044641,-430.0,0.00021369,2]
[362646516,1748385044650,-430.0,0.00021369,2]
[362646518,1748385044659,-430.0,0.00021369,2]
[362646520,1748385044669,-761.15,0.00021369,2]
[362646522,1748385044679,-430.0,0.00021369,2]
[362646524,1748385044689,-717.31,0.00021369,2]
[362646526,1748385044698,-430.0,0.00021369,2]
[362646528,1748385044707,-857.73,0.00021369,2]
[362646530,1748385044717,-583.78,0.00021369,2]
[362646532,1748385044726,-430.0,0.00021369,2]
[362646535,1748385044736,-430.0,0.00021369,2]
[362646539,1748385044746,-1937.22846601,0.00021383,5]
[362646542,1748385044755,-405.0,0.00021394,2]
[362646545,1748385044764,-960.0,0.00021394,2]
[362646547,1748385044773,-587.0,0.00021458,2]
[362646550,1748385044783,-910.65320868,0.00021543,2]
[362646552,1748385044792,-1937.22846601,0.0002159,5]
[362646556,1748385044802,-500.0,0.00021627,2]
[362646558,1748385044811,-500.0,0.00021627,2]
[362646560,1748385044820,-518.11327688,0.00021627,2]
[362646562,1748385044830,-584.41539273,0.00021627,2]
[362646565,1748385044839,-500.0,0.00021627,2]
[362646568,1748385044849,-500.0,0.00021627,2]
[362646570,1748385044861,-500.43144808,0.00021627,2]
[362646572,1748385044871,-500.0,0.00021627,2]
[362646574,1748385044880,-514.42023058,0.00021627,2]
[362646576,1748385044890,-500.0,0.00021627,2]
[362646579,1748385044902,-500.0,0.00021627,2]
[362646581,1748385044911,-500.0,0.00021627,2]
[362646583,1748385044921,-600.0,0.00021627,2]
[362646585,1748385044932,-500.0,0.00021627,2]
[362646588,1748385044942,-500.0,0.00021627,2]
[362646590,1748385044952,-500.0,0.00021627,2]
[362646592,1748385044962,-500.76757902,0.00021627,2]
[362646593,1748385044973,-500.0,0.00021627,2]
[362646595,1748385044983,-500.0,0.00021627,2]
[362646597,1748385044992,-701.71,0.00021642,2]
[362646600,1748385045002,-430.0,0.00021643,2]
[362646602,1748385045012,-430.0,0.00021643,2]
[362646603,1748385045021,-430.0,0.00021643,2]
[362646606,1748385045031,-430.0,0.00021643,2]
[362646608,1748385045040,-430.0,0.00021643,2]
[362646609,1748385045050,-430.0,0.00021643,2]
[362646611,1748385045059,-430.0,0.00021643,2]
[362646613,1748385045069,-430.0,0.00021643,2]
[362646615,1748385045079,-467.89814407,0.00021643,2]
[362646617,1748385045088,-568.86,0.00021643,2]
[362646620,1748385045098,-1108.25,0.00021643,2]
[362646622,1748385045108,-491.98,0.00021643,2]
[362646624,1748385045117,-558.61,0.00021643,2]
[362646626,1748385045126,-1282.69,0.00021643,2]
[362646628,1748385045136,-2428.74,0.00021643,2]
[362646629,1748385045145,-1925.32,0.00021643,2]
[362646631,1748385045155,-1372.47,0.00021643,2]
[362646633,1748385045164,-430.0,0.00021643,2]
[362646635,1748385045173,-430.0,0.00021643,2]
[362646637,1748385045182,-570.45,0.00021643,2]
[362646639,1748385045192,-430.0,0.00021643,2]
[362646641,1748385045201,-430.0,0.00021643,2]
[362646643,1748385045210,-430.0,0.00021643,2]
[362646645,1748385045220,-989.22,0.00021643,2]
[362646647,1748385045229,-430.0,0.00021643,2]
[362646649,1748385045239,-1091.86,0.00021643,2]
[362646651,1748385045248,-430.0,0.00021643,2]
[362646653,1748385045258,-644.91,0.00021643,2]
[362646655,1748385045274,-430.0,0.00021643,2]
[362646657,1748385045284,-430.0,0.00021643,2]
[362646659,1748385045295,-430.0,0.00021643,2]
[362646661,1748385045304,-430.0,0.00021643,2]
[362646663,1748385045314,-430.0,0.00021643,2]
[362646665,1748385045323,-761.15,0.00021643,2]
[362646667,1748385045333,-280.81359901,0.00021643,2]
[362646669,1748385045343,-717.31,0.00021643,2]
[362646671,1748385045352,-430.0,0.00021643,2]
[362646673,1748385045362,-857.73,0.00021643,2]
[362646675,1748385045371,-583.78,0.00021643,2]
[362646677,1748385045381,-430.0,0.00021643,2]
[362646679,1748385045390,-430.0,0.00021643,2]
[362646681,1748385045400,-155.0,0.00021644,2]
[362646683,1748385045410,-500.46214006,0.00021729,2]
[362646685,1748385045419,-500.0,0.00021729,2]
[362646687,1748385045428,-612.97933019,0.00021729,2]
[362646689,1748385045437,-500.0,0.00021729,2]
[362646691,1748385045447,-500.0,0.00021729,2]
[362646693,1748385045456,-500.0,0.00021729,2]
[362646695,1748385045465,-409.91396943,0.00021729,2]
[362646697,1748385045475,-500.0,0.00021729,2]
[362646699,1748385045484,-286.13853421,0.00021729,2]
[362646701,1748385045494,-629.56515353,0.00021729,2]
[362646703,1748385045503,-643.09418952,0.00021729,2]
[362646705,1748385045513,-500.0,0.00021729,2]
[362646707,1748385045522,-526.80558913,0.00021729,2]
[362646709,1748385045532,-500.0,0.00021729,2]
[362646711,1748385045541,-500.0,0.00021729,2]
[362646713,1748385045551,-1937.22846601,0.00021797,6]
[362646715,1748385045560,-3000.0,0.000218,2]
[362646717,1748385045570,-701.71,0.00021809,2]
[362646718,1748385045580,-3000.0,0.0002181,2]
[362646720,1748385045589,-3000.0,0.0002182,2]
[362646723,1748385045599,-500.0,0.00021829,2]
[362646724,1748385045609,-3000.0,0.0002183,2]
[362646727,1748385045619,-3000.0,0.0002184,2]
[362646728,1748385045628,-3000.0,0.0002185,2]
[362646730,1748385045637,-3000.0,0.0002186,2]
[362646732,1748385045647,-500.0,0.00021867,2]
[362646734,1748385045656,-701.71,0.00021869,2]
[362646736,1748385045666,-3000.0,0.0002187,2]
[362646738,1748385045675,-3000.0,0.0002188,2]
[362646740,1748385045684,-3000.000001,0.0002189,2]
[362646742,1748385045694,-430.0,0.00021917,2]
[362646744,1748385045703,-430.0,0.00021917,2]
[362646746,1748385045712,-430.0,0.00021917,2]
[362646748,1748385045722,-430.0,0.00021917,2]
[362646750,1748385045731,-430.0,0.00021917,2]
[362646752,1748385045741,-430.0,0.00021917,2]
[362646754,1748385045751,-430.0,0.00021917,2]
[362646756,1748385045760,-568.86,0.00021917,2]
[362646758,1748385045770,-1108.25,0.00021917,2]
[362646760,1748385045779,-558.61,0.00021917,2]
[362646762,1748385045789,-1282.69,0.00021917,2]
[362646764,1748385045799,-2428.74,0.00021917,2]
[362646766,1748385045808,-1925.32,0.00021917,2]
[362646768,1748385045817,-1372.47,0.00021917,2]
[362646770,1748385045826,-430.0,0.00021917,2]
[362646772,1748385045836,-430.0,0.00021917,2]
[362646774,1748385045846,-570.45,0.00021917,2]
[362646776,1748385045857,-430.0,0.00021917,2]
[362646778,1748385045867,-430.0,0.00021917,2]
[362646780,1748385045877,-430.0,0.00021917,2]
[362646782,1748385045887,-989.22,0.00021917,2]
[362646784,1748385045897,-430.0,0.00021917,2]
[362646794,1748385045984,-1091.86,0.00021917,2]
[362646796,1748385045995,-430.0,0.00021917,2]
[362646798,1748385046005,-644.91,0.00021917,2]
[362646800,1748385046014,-430.0,0.00021917,2]
[362646802,1748385046024,-430.0,0.00021917,2]
[362646804,1748385046034,-430.0,0.00021917,2]
[362646806,1748385046045,-430.0,0.00021917,2]
[362646808,1748385046054,-430.0,0.00021917,2]
[362646810,1748385046063,-761.15,0.00021917,2]
[362646812,1748385046074,-717.31,0.00021917,2]
[362646814,1748385046083,-430.0,0.00021917,2]
[362646816,1748385046093,-857.73,0.00021917,2]
[362646818,1748385046103,-583.78,0.00021917,2]
[362646820,1748385046113,-430.0,0.00021917,2]
[362646822,1748385046128,-701.71,0.00021999,2]
[362646824,1748385046138,-701.71,0.00021999,2]
[362646826,1748385046147,-701.71,0.00021999,2]
[362646828,1748385046156,-701.71,0.00021999,2]
[362646830,1748385046166,-701.71,0.00021999,2]
[362646832,1748385046175,-701.71,0.00021999,2]
[362646834,1748385046184,-701.71,0.00021999,2]
[362646836,1748385046194,-701.8180297,0.00021999,2]
[362646838,1748385046203,-1213.05,0.00022,7]
[362646840,1748385046213,-218735.58,0.00022,7]
[362646842,1748385046225,-314.71326974,0.00022,7]
[362646844,1748385046235,-19627.66910334,0.00022,2]
[362646847,1748385046254,-80493.93905495,0.00022,2]
[362646849,1748385046262,-1937.22846601,0.00022003,6]
[362646851,1748385046273,-500.0,0.00022175,2]
[362646853,1748385046282,-161.99,0.00022191,2]
[362646855,1748385046291,-430.0,0.00022191,2]
[362646857,1748385046302,-430.0,0.00022191,2]
[362646859,1748385046312,-430.0,0.00022191,2]
[362646861,1748385046321,-430.0,0.00022191,2]
[362646863,1748385046331,-430.0,0.00022191,2]
[362646865,1748385046341,-430.0,0.00022191,2]
[362646867,1748385046350,-568.86,0.00022191,2]
[362646869,1748385046360,-1108.25,0.00022191,2]
[362646871,1748385046370,-558.61,0.00022191,2]
[362646873,1748385046379,-1282.69,0.00022191,2]
[362646876,1748385046389,-2428.74,0.00022191,2]
[362646878,1748385046399,-1925.32,0.00022191,2]
[362646880,1748385046409,-1372.47,0.00022191,2]
[362646881,1748385046418,-430.0,0.00022191,2]
[362646883,1748385046427,-430.0,0.00022191,2]
[362646886,1748385046437,-570.45,0.00022191,2]
[362646888,1748385046446,-430.0,0.00022191,2]
[362646890,1748385046456,-430.0,0.00022191,2]
[362646891,1748385046467,-430.0,0.00022191,2]
[362646893,1748385046476,-989.22,0.00022191,2]
[362646895,1748385046486,-430.0,0.00022191,2]
[362646897,1748385046495,-1091.86,0.00022191,2]
[362646899,1748385046504,-430.0,0.00022191,2]
[362646901,1748385046514,-644.91,0.00022191,2]
[362646903,1748385046523,-430.0,0.00022191,2]
[362646905,1748385046532,-430.0,0.00022191,2]
[362646907,1748385046542,-164.41291089,0.00022191,2]
[362646909,1748385046551,-430.0,0.00022191,2]
[362646911,1748385046561,-206.64979323,0.00022191,2]
[362646913,1748385046570,-761.15,0.00022191,2]
[362646915,1748385046579,-717.31,0.00022191,2]
[362646917,1748385046588,-430.0,0.00022191,2]
[362646919,1748385046598,-857.73,0.00022191,2]
[362646921,1748385046608,-583.78,0.00022191,2]
[362646923,1748385046617,-430.0,0.00022191,2]
[362646925,1748385046627,-155.0,0.00022192,2]
[362646927,1748385046637,-1937.22846601,0.0002221,6]
[362646929,1748385046647,-1041.858631,0.00022227,2]
[362646932,1748385046656,-700.0,0.0002226,2]
[362646933,1748385046666,-499.62,0.000223,2]
[362646935,1748385046675,-155.02185706,0.00022356,2]
[362646937,1748385046684,-155.02185706,0.00022356,2]
[362646939,1748385046694,-1937.22846601,0.00022417,7]
[362646941,1748385046703,-430.0,0.00022465,2]
[362646944,1748385046712,-430.0,0.00022465,2]
[362646945,1748385046723,-430.0,0.00022465,2]
[362646947,1748385046732,-430.0,0.00022465,2]
[362646948,1748385046742,-568.86,0.00022465,2]
[362646949,1748385046751,-1108.25,0.00022465,2]
[362646950,1748385046760,-558.61,0.00022465,2]
[362646951,1748385046770,-1282.69,0.00022465,2]
[362646952,1748385046779,-2428.74,0.00022465,2]
[362646953,1748385046788,-1925.32,0.00022465,2]
[362646954,1748385046798,-1372.47,0.00022465,2]
[362646956,1748385046807,-430.0,0.00022465,2]
[362646958,1748385046816,-430.0,0.00022465,2]
[362646960,1748385046825,-570.45,0.00022465,2]
[362646962,1748385046834,-430.0,0.00022465,2]
[362646964,1748385046844,-430.0,0.00022465,2]
[362646966,1748385046857,-430.0,0.00022465,2]
[362646968,1748385046866,-989.22,0.00022465,2]
[362646970,1748385046876,-430.0,0.00022465,2]
[362646972,1748385046885,-1091.86,0.00022465,2]
[362646975,1748385046896,-355.71651661,0.00022465,2]
[362646976,1748385046906,-644.91,0.00022465,2]
[362646979,1748385046915,-430.0,0.00022465,2]
[362646980,1748385046924,-430.0,0.00022465,2]
[362646982,1748385046935,-430.0,0.00022465,2]
[362646984,1748385046945,-761.15,0.00022465,2]
[362646987,1748385046956,-717.31,0.00022465,2]
[362646989,1748385046966,-430.0,0.00022465,2]
[362646991,1748385046975,-857.73,0.00022465,2]
[362646993,1748385046984,-583.78,0.00022465,2]
[362646995,1748385046994,-430.0,0.00022465,2]
[362646997,1748385047005,-881.78937656,0.00022499,2]
[362646998,1748385047014,-1937.22846601,0.00022624,7]
[362647001,1748385047024,-208.48715233,0.00022658,2]
[362647003,1748385047034,-155.02185706,0.00022658,2]
[362647004,1748385047043,-155.02185706,0.00022658,2]
[362647007,1748385047053,-155.02185706,0.00022658,2]
[362647009,1748385047062,-207.4,0.00022721,2]
[362647011,1748385047072,-5000.0,0.00022721,2]
[362647013,1748385047081,-3595.64204661,0.00022721,2]
[362647015,1748385047091,-1426.41,0.00022736,2]
[362647017,1748385047101,-430.0,0.00022739,2]
[362647018,1748385047110,-430.0,0.00022739,2]
[362647020,1748385047119,-430.0,0.00022739,2]
[362647022,1748385047128,-430.0,0.00022739,2]
[362647024,1748385047138,-568.86,0.00022739,2]
[362647026,1748385047150,-1108.25,0.00022739,2]
[362647028,1748385047159,-558.61,0.00022739,2]
[362647031,1748385047169,-1282.69,0.00022739,2]
[362647033,1748385047178,-2428.74,0.00022739,2]
[362647035,1748385047188,-1925.32,0.00022739,2]
[362647036,1748385047196,-1372.47,0.00022739,2]
[362647039,1748385047207,-430.0,0.00022739,2]
[362647041,1748385047216,-430.0,0.00022739,2]
[362647043,1748385047225,-570.45,0.00022739,2]
[362647045,1748385047235,-430.0,0.00022739,2]
[362647047,1748385047244,-430.0,0.00022739,2]
[362647049,1748385047253,-430.0,0.00022739,2]
[362647051,1748385047263,-989.22,0.00022739,2]
[362647053,1748385047272,-430.0,0.00022739,2]
[362647055,1748385047282,-1091.86,0.00022739,2]
[362647057,1748385047291,-644.91,0.00022739,2]
[362647059,1748385047300,-430.0,0.00022739,2]
[362647061,1748385047309,-430.0,0.00022739,2]
[362647063,1748385047319,-567.74320211,0.00022739,2]
[362647065,1748385047328,-761.15,0.00022739,2]
[362647067,1748385047337,-717.31,0.00022739,2]
[362647069,1748385047347,-430.0,0.00022739,2]
[362647071,1748385047356,-857.73,0.00022739,2]
[362647073,1748385047365,-583.78,0.00022739,2]
[362647075,1748385047374,-430.0,0.00022739,2]
[362647077,1748385047384,-155.0,0.0002274,2]
[362647079,1748385047393,-1937.22846601,0.00022831,8]
[362647081,1748385047403,-155.02185706,0.00022932,2]
[362647083,1748385047413,-155.02185706,0.00022932,2]
[362647085,1748385047422,-64602.45704022,0.0002299,2]
[362647087,1748385047431,-160.0,0.00023,3]
[362647089,1748385047441,-423.16111059,0.00023,3]
[362647091,1748385047450,-430.0,0.00023013,2]
[362647093,1748385047460,-430.0,0.00023013,2]
[362647095,1748385047471,-430.0,0.00023013,2]
[362647097,1748385047481,-430.0,0.00023013,2]
[362647099,1748385047490,-568.86,0.00023013,2]
[362647101,1748385047499,-1108.25,0.00023013,2]
[362647103,1748385047508,-558.61,0.00023013,2]
[362647105,1748385047517,-1282.69,0.00023013,2]
[362647107,1748385047527,-2428.74,0.00023013,2]
[362647109,1748385047536,-1925.32,0.00023013,2]
[362647111,1748385047545,-1372.47,0.00023013,2]
[362647113,1748385047554,-430.0,0.00023013,2]
[362647115,1748385047564,-430.0,0.00023013,2]
[362647117,1748385047573,-570.45,0.00023013,2]
[362647126,1748385047657,-430.0,0.00023013,2]
[362647128,1748385047667,-430.0,0.00023013,2]
[362647130,1748385047676,-430.0,0.00023013,2]
[362647132,1748385047685,-989.22,0.00023013,2]
[362647134,1748385047695,-430.0,0.00023013,2]
[362647136,1748385047705,-1091.86,0.00023013,2]
[362647138,1748385047714,-644.91,0.00023013,2]
[362647140,1748385047725,-430.0,0.00023013,2]
[362647143,1748385047735,-430.0,0.00023013,2]
[362647144,1748385047744,-761.15,0.00023013,2]
[362647147,1748385047754,-717.31,0.00023013,2]
[362647149,1748385047763,-430.0,0.00023013,2]
[362647151,1748385047773,-857.73,0.00023013,2]
[362647153,1748385047782,-583.78,0.00023013,2]
[362647155,1748385047791,-430.0,0.00023013,2]
[362647157,1748385047800,-1937.22846601,0.00023038,8]
[362647159,1748385047810,-1041.858631,0.00023118,2]
[362647161,1748385047820,-1213.05,0.000232,7]
[362647163,1748385047829,-1937.22846601,0.00023245,8]
[362647165,1748385047838,-430.0,0.00023287,2]
[362647167,1748385047848,-430.0,0.00023287,2]
[362647169,1748385047861,-430.0,0.00023287,2]
[362647171,1748385047871,-430.0,0.00023287,2]
[362647173,1748385047880,-568.86,0.00023287,2]
[362647175,1748385047889,-1108.25,0.00023287,2]
[362647177,1748385047900,-558.61,0.00023287,2]
[362647179,1748385047909,-1282.69,0.00023287,2]
[362647180,1748385047919,-2428.74,0.00023287,2]
[362647181,1748385047929,-1925.32,0.00023287,2]
[362647182,1748385047939,-1372.47,0.00023287,2]
[362647183,1748385047949,-430.0,0.00023287,2]
[362647184,1748385047959,-430.0,0.00023287,2]
[362647185,1748385047969,-570.45,0.00023287,2]
[362647186,1748385047981,-430.0,0.00023287,2]
[362647187,1748385047991,-430.0,0.00023287,2]
[362647188,1748385048001,-430.0,0.00023287,2]
[362647189,1748385048010,-989.22,0.00023287,2]
[362647190,1748385048020,-430.0,0.00023287,2]
[362647191,1748385048031,-1091.86,0.00023287,2]
[362647192,1748385048041,-644.91,0.00023287,2]
[362647193,1748385048050,-430.0,0.00023287,2]
[362647194,1748385048059,-430.0,0.00023287,2]
[362647195,1748385048069,-761.15,0.00023287,2]
[362647196,1748385048078,-717.31,0.00023287,2]
[362647197,1748385048087,-430.0,0.00023287,2]
[362647198,1748385048096,-857.73,0.00023287,2]
[362647199,1748385048107,-583.78,0.00023287,2]
[362647200,1748385048116,-430.0,0.00023287,2]
[362647202,1748385048126,-700.0,0.00023356,2]
[362647204,1748385048135,-151.0,0.000234,10]
[362647206,1748385048145,-823.0,0.00023413,2]
[362647208,1748385048153,-1937.22846601,0.00023452,9]
[362647209,1748385048162,-430.0,0.00023561,2]
[362647212,1748385048172,-430.0,0.00023561,2]
[362647213,1748385048181,-430.0,0.00023561,2]
[362647215,1748385048190,-430.0,0.00023561,2]
[362647217,1748385048199,-568.86,0.00023561,2]
[362647219,1748385048208,-1108.25,0.00023561,2]
[362647221,1748385048218,-558.61,0.00023561,2]
[362647223,1748385048227,-2428.74,0.00023561,2]
[362647225,1748385048237,-1282.69,0.00023561,2]
[362647227,1748385048246,-1925.32,0.00023561,2]
[362647229,1748385048256,-1372.47,0.00023561,2]
[362647232,1748385048266,-430.0,0.00023561,2]
[362647234,1748385048275,-430.0,0.00023561,2]
[362647236,1748385048284,-570.45,0.00023561,2]
[362647238,1748385048295,-430.0,0.00023561,2]
[362647240,1748385048304,-430.0,0.00023561,2]
[362647242,1748385048313,-430.0,0.00023561,2]
[362647244,1748385048322,-989.22,0.00023561,2]
[362647246,1748385048331,-430.0,0.00023561,2]
[362647248,1748385048341,-1091.86,0.00023561,2]
[362647250,1748385048350,-644.91,0.00023561,2]
[362647252,1748385048360,-430.0,0.00023561,2]
[362647254,1748385048369,-565.71035262,0.00023561,2]
[362647256,1748385048379,-761.15,0.00023561,2]
[362647257,1748385048388,-717.31,0.00023561,2]
[362647259,1748385048398,-430.0,0.00023561,2]
[362647262,1748385048408,-857.73,0.00023561,2]
[362647264,1748385048418,-583.78,0.00023561,2]
[362647266,1748385048427,-430.0,0.00023561,2]
[362647268,1748385048436,-1392.00054537,0.000236,2]
[362647270,1748385048446,-1937.22846601,0.00023659,9]
[362647272,1748385048456,-1426.84405055,0.000237,2]
[362647274,1748385048465,-637.0,0.000237,2]
[362647275,1748385048476,-500.0,0.00023799,2]
[362647278,1748385048486,-290.42540321,0.00023799,2]
[362647280,1748385048496,-838960.03462775,0.000238,2]
[362647298,1748385048665,-271.4,0.00019178,2]
[362647301,1748385048677,-158.6,0.00019178,2]
[362647303,1748385048686,-430.0,0.00019178,2]
[362647305,1748385048695,-303.87082374,0.00019178,2]
[362647307,1748385048707,-126.12917626,0.00019178,2]
[362647309,1748385048716,-430.0,0.00019452,2]
[362647311,1748385048728,-436.44515137,0.00019452,2]
[362647313,1748385048738,-526.7753004,0.00021896,2]
[362647315,1748385048749,-289.32945413,0.00021896,2]
[362647317,1748385048761,-183.89524547,0.00021896,2]
[362647319,1748385048770,-430.0,0.00021917,2]
[362647321,1748385048779,-430.0,0.00022191,2]
[362647323,1748385048788,-430.0,0.00022465,2]
[362647325,1748385048797,-325.12286173,0.00022739,2]
[362647328,1748385048809,-104.87713827,0.00022739,2]
[362647330,1748385048819,-430.0,0.00023013,2]
[362647332,1748385048829,-274.64783458,0.00023287,2]
[362647334,1748385048840,-155.35216542,0.00023287,2]
[362647336,1748385048850,-430.0,0.00023561,2]
[362647338,1748385048862,-222760.42424627,0.000238,2]
[362647346,1748385048939,-430.0,0.00019178,2]
[362647348,1748385048950,-220.65,0.00019452,2]